Cogmind - Beta 10.1 @@@ ROGUE MODE // 2020.09.23 @ 17:29:12 Player: FUTURIST Result: Destroyed by G-47 Trooper with Particle Gun Performance ------------- Evolutions (2) 1000 Regions Visited (5) 1000 Robots Destroyed (51) 255 Value Destroyed (1347) 1347 Prototype IDs (1) 20 Alien Tech Used (0) 0 Bonus (0) 0 TOTAL SCORE: 3622 Bonus ------- None Cogmind --------- Core Integrity 0/550 Matter 55/300 Energy 100/100 System Corruption 1% Temperature Cool (9) Movement Flying (440) Ox5 Location -8/Materials Parts ------- > --- POWER (2) -------- (None) > --- PROPULSION (4) --- Flight Unit > --- UTILITY (3) ------ Large Storage Unit Advanced Visual Processing Unit Advanced Signal Interpreter > --- WEAPON (2) ------- Flak Cannon > --- INVENTORY (10) --- Large Storage Unit Peak State ------------ > --- POWER ------------ Ion Engine Reinforced Ion Engine > --- PROPULSION ------- Aluminum Leg Aluminum Leg Aluminum Leg Carbon-fiber Leg > --- UTILITY ---------- Large Storage Unit Advanced Visual Processing Unit Advanced Signal Interpreter > --- WEAPON ----------- Shotgun Axe > --- INVENTORY -------- Light Ion Engine Aluminum Leg Aluminum Leg Aluminum Leg Large Storage Unit [Rating: 21] Favorites ----------- Power Ion Engine Engine Ion Engine Propulsion Aluminum Leg Treads Light Treads Leg Aluminum Leg Flight Unit Flight Unit Utility Small Storage Unit Device Experimental Sensor Array Storage Small Storage Unit Processor Advanced Visual Processing Unit Weapon Grenade Launcher Energy Gun Small Laser Ballistic Gun Shotgun Ballistic Cannon Flak Cannon Launcher Grenade Launcher Slashing Weapon Axe Build | -11 -10 -10 -9 -9 -8 ------- Run | Scr Mat Min Mat Min Mat Slots Evolved 4 | . . . 2 . 2 Power 1 | . . . . . 1 Propulsion 2 | . . . 2 . . Utility 1 | . . . . . 1 Weapon . | . . . . . . Parts Attached 43 | 7 1 6 10 5 14 Power 7 | 1 . 1 3 . 2 Engine 7 | 1 . 1 3 . 2 Core . | . . . . . . Reactor . | . . . . . . Propulsion 17 | 3 . 1 4 3 6 Treads 1 | 1 . . . . . Leg 15 | 2 . 1 4 3 5 Wheel . | . . . . . . Hover . | . . . . . . Flight 1 | . . . . . 1 Utility 5 | 1 . 1 1 . 2 Device 1 | . . 1 . . . Storage 2 | 1 . . . . 1 Processor 2 | . . . 1 . 1 Hackware . | . . . . . . Protection . | . . . . . . Artifact . | . . . . . . Weapon 14 | 2 1 3 2 2 4 Energy Gun 3 | 2 . 1 . . . Energy Cannon . | . . . . . . Ballistic Gun 3 | . . 1 1 1 . Ballistic Cannon 2 | . . . . . 2 Launcher 5 | . 1 1 1 1 1 Special Weapon . | . . . . . . Impact Weapon . | . . . . . . Slashing Weapon 1 | . . . . . 1 Piercing Weapon . | . . . . . . Special Melee Weapon . | . . . . . . Unidentified Prototypes 1 | . . 1 . . . Parts Lost 25 | . . 2 5 4 14 Power 5 | . . 1 1 . 3 Propulsion 12 | . . . 3 2 7 Utility 1 | . . . 1 . . Weapon 7 | . . 1 . 2 4 Highest Loss Streak 8 | . . 2 3 4 8 Average Slot Usage (%) 84 | . 85 94 85 80 80 Engine 11 | . 14 12 10 11 11 Leg 28 | . 28 28 33 29 25 Device 3 | . . 9 7 . . Storage 11 | . 14 14 11 11 9 Processor 6 | . . . . 11 17 Energy Gun 4 | . 15 11 . . . Ballistic Gun 6 | . . 2 11 11 5 Launcher 9 | . 12 14 11 7 4 Naked Turns . | . . . . . . Heaviest Build 37 | 10 11 14 21 21 37 Greatest Support 45 | 20 20 20 40 40 45 Greatest Overweight (x) 8 | . . . 1 1 8 Average Overweight (x) . | . . . . . . Largest Inventory Capacity 10 | 6 6 6 6 6 10 Average Capacity 6 | 5 6 6 6 6 9 Most Carried 6 | 4 6 6 6 6 6 Average Carried 5 | 3 5 5 5 5 4 Final Capacity 10 | 6 6 6 6 6 10 Final Carried 6 | 4 6 5 6 4 1 Class Distribution -------------------- 84% | Mutant 15% | Scavenger-Mutant Dominant Class ---------------- Mutant | -10/Materials Mutant | -10/Mines Mutant | -9/Materials Mutant | -9/Mines Scavenger-Mutant | -8/Materials Resources | -11 -10 -10 -9 -9 -8 ----------- Run | Scr Mat Min Mat Min Mat Matter Collected 875 | 270 32 75 170 135 193 Remotely . | . . . . . . Salvage Created 1193 | . 170 42 341 349 291 Parts 92 | . 15 6 18 30 23 Haulers Intercepted . | . . . . . . Recyclers Shooed . | . . . . . . Parts Field Recycled . | . . . . . . Retrieved Matter . | . . . . . . Parts Self-Destructed . | . . . . . . Prevented . | . . . . . . Kills | -11 -10 -10 -9 -9 -8 ------- Run | Scr Mat Min Mat Min Mat Combat Hostiles Destroyed 44 | . 5 3 11 13 12 Melee 4 | . . . . . 4 Guns 16 | . . 3 4 8 1 Cannons 5 | . . . . . 5 AOE 19 | . 5 . 7 5 2 Classes Destroyed 7 | . 4 1 1 1 . Builder 2 | . 1 . . . 1 Tunneler 4 | . 1 . . 3 . Watcher 1 | . 1 . . . . Swarmer 12 | . . 3 . 4 5 Grunt 27 | . 5 . 9 7 6 Brawler 3 | . . . 2 . 1 Assembled 2 | . . . . 2 . Best Kill Streak 8 | . 8 2 6 7 6 Combat Bots Only 6 | . 5 2 6 4 5 Max Kills in Single Turn 6 | . 2 1 2 6 2 Gunslinging . | . . . . . . Exploded 3 | . 1 . 2 3 2 Melee 1 | . . . . . 1 Uniques/NPCs Destroyed . | . . . . . . Combat | -11 -10 -10 -9 -9 -8 -------- Run | Scr Mat Min Mat Min Mat Damage Taken 3080 | . 89 309 467 427 1788 Core 838 | . 51 57 93 71 566 Absorbed by Shields . | . . . . . . Core Remaining (%) 71 | 100 . 56 . 59 . Volleys Fired 122 | . 8 24 29 35 26 Largest 1 | . 1 1 1 1 1 Hottest 44 | . 30 40 33 33 44 Shots Fired 122 | . 8 24 29 35 26 Gun 76 | . . 24 22 24 6 Cannon 11 | . . . . . 11 Launcher 35 | . 8 . 7 11 9 Special . | . . . . . . Kinetic 63 | . . . 22 24 17 Thermal 24 | . . 24 . . . Explosive 35 | . 8 . 7 11 9 Electromagnetic . | . . . . . . Robot Hit Streak 8 | . 6 5 8 7 5 Robot Miss Streak 7 | . . 4 2 4 7 Penetration Max . | . . . . . . Secondary Targets . | . . . . . . Shots Hit Robots 87 | . 6 13 19 23 26 Core Hits 99 | . 12 3 24 26 34 Critical Hits 1 | . . . . . 1 Critical Kills 1 | . . . . . 1 Critical Parts Destroyed . | . . . . . . Melee Attacks 12 | . . . . . 12 Impact . | . . . . . . Slashing 12 | . . . . . 12 Piercing . | . . . . . . Sneak Attacks . | . . . . . . Combat Hostiles . | . . . . . . Follow-up Attacks . | . . . . . . Damage Inflicted 3078 | . 453 159 815 604 1047 Guns 732 | . . 148 205 277 102 Cannons 127 | . . . . . 127 Explosions 1901 | . 453 . 601 327 520 Melee 291 | . . . . . 291 Ramming 27 | . . 11 9 . 7 Kinetic 711 | . . . 205 277 229 Thermal 161 | . . 148 13 . . Explosive 1823 | . 453 . 523 327 520 Electromagnetic 65 | . . . 65 . . Impact . | . . . . . . Slashing 291 | . . . . . 291 Piercing . | . . . . . . Highest Corruption 1 | . . . . . 1 Average Corruption 1 | . . . . . 1 Corruption Purged . | . . . . . . Effects 1 | . . . . . 1 Energy Discharges 1 | . . . . . 1 Overload Shots . | . . . . . . Overflow Damage 44 | . 16 . 8 . 20 Projectiles . | . . . . . . Explosions 24 | . 16 . 8 . . Melee 20 | . . . . . 20 Knockbacks 5 | . . . . . 5 Impact . | . . . . . . Kinetic 5 | . . . . . 5 Secondary . | . . . . . . Self-Inflicted Damage 252 | . . 5 137 69 41 Shots 9 | . . . 5 3 1 Rammed 2 | . . 2 . . . Targets Rammed 4 | . . 2 1 . 1 Kicked 2 | . . . 1 . 1 Crushed . | . . . . . . Highest Temperature 28 | . 10 . . 16 28 Average Temperature 10 | . 4 . . 8 13 Received Heat Transfer 1117 | . 48 . 189 124 756 Siege Activations . | . . . . . . Robots Corrupted . | . . . . . . Combat Hostiles . | . . . . . . Parts Fried . | . . . . . . Impact Corruptions . | . . . . . . Robots Melted . | . . . . . . Combat Hostiles . | . . . . . . Parts Melted 3 | . . 2 . . 1 Heat Transferred 375 | . . 325 50 . . Parts Sabotaged . | . . . . . . Parts Stolen . | . . . . . . Parts Stripped . | . . . . . . Power Chain Reactions 2 | . . . 2 . . Missiles Intercepted . | . . . . . . Alert | -11 -10 -10 -9 -9 -8 ------- Run | Scr Mat Min Mat Min Mat Peak Influence 322 | . 179 134 322 250 283 Initial 125 | . . 69 52 125 56 Average 131 | . 75 126 166 148 141 Maximum Alert Level 1 | . . . 1 1 1 Low Security (%) 87 | 100 100 100 77 91 67 Level 1 12 | . . . 22 8 32 Level 2 . | . . . . . . Level 3 . | . . . . . . Level 4 . | . . . . . . Level 5 . | . . . . . . High Security . | . . . . . . Max Security . | . . . . . . Squads Dispatched 5 | . 2 . . . 3 Investigation 2 | . 2 . . . . Extermination . | . . . . . . Reinforcement 2 | . . . . . 2 Assault . | . . . . . . Garrison 1 | . . . . . 1 Intercept . | . . . . . . Construction Impeded 1 | . . . . . 1 Haulers Reinforced . | . . . . . . Stealth | -11 -10 -10 -9 -9 -8 --------- Run | Scr Mat Min Mat Min Mat Distress Signals 4 | . 1 . . . 3 Communications Jammed . | . . . . . . Distress Signals . | . . . . . . Times Spotted 64 | . 7 5 13 13 26 Peak Tracking Total 9 | . 2 3 6 4 9 Tactical Retreats 3 | . . 1 1 . 1 Traps | -11 -10 -10 -9 -9 -8 ------- Run | Scr Mat Min Mat Min Mat Traps Triggered 3 | . 2 . . . 1 Indirectly . | . . . . . . Trap Hack Attempts . | . . . . . . Triggered . | . . . . . . Disarmed . | . . . . . . Reprogrammed . | . . . . . . Reused . | . . . . . . Traps Extracted . | . . . . . . Installed . | . . . . . . Triggered . | . . . . . . Machines | -11 -10 -10 -9 -9 -8 ---------- Run | Scr Mat Min Mat Min Mat Machines Disabled 3 | . 1 . 2 . . Max in Single Turn 2 | . 1 . 2 . . Machines Sabotaged . | . . . . . . Garrisons Compromised . | . . . . . . Overloaded Fab Kills . | . . . . . . Fab Network Shutdowns . | . . . . . . Hacking | -11 -10 -10 -9 -9 -8 --------- Run | Scr Mat Min Mat Min Mat Machines Accessed 2 | . 1 . . 1 . Terminals 1 | . 1 . . . . Fabricators . | . . . . . . Repair Stations . | . . . . . . Recycling Units . | . . . . . . Scanalyzers . | . . . . . . Garrison Access . | . . . . . . Total Hacks 4 | . 3 . . 1 . Successful 4 | . 3 . . 1 . Failed . | . . . . . . Catastrophic . | . . . . . . Database Lockouts . | . . . . . . Manual . | . . . . . . Terminals 3 | . 3 . . . . Fabricators . | . . . . . . Repair Stations . | . . . . . . Recycling Units . | . . . . . . Scanalyzers . | . . . . . . Garrison Access . | . . . . . . Terminal Hacks 4 | . 3 . . 1 . Record 2 | . 2 . . . . Open Door 1 | . . . . 1 . Alert Level 1 | . 1 . . . . Fabricator Hacks . | . . . . . . Repair Station Hacks . | . . . . . . Recycling Unit Hacks . | . . . . . . Scanalyzer . | . . . . . . Garrison Access Hacks . | . . . . . . Unauthorized Hacks . | . . . . . . Terminals . | . . . . . . Fabricators . | . . . . . . Repair Stations . | . . . . . . Recycling Units . | . . . . . . Scanalyzers . | . . . . . . Garrison Access . | . . . . . . Data Cores Recovered . | . . . . . . Used . | . . . . . . Hacking Detections 1 | . 1 . . . . Full Trace Events 1 | . 1 . . . . Feedback Events . | . . . . . . Feedback Blocked . | . . . . . . Robot Schematics Acquired . | . . . . . . Robots Built . | . . . . . . Matter . | . . . . . . Time . | . . . . . . Total Robot Build Rating . | . . . . . . Part Schematics Acquired . | . . . . . . Parts Built . | . . . . . . Matter . | . . . . . . Time . | . . . . . . Total Part Build Rating . | . . . . . . Parts Repaired . | . . . . . . Time . | . . . . . . Parts Recycled . | . . . . . . Recycled Matter . | . . . . . . Retrieved Matter . | . . . . . . Retrieved Components . | . . . . . . Parts Scanalyzed . | . . . . . . Part Schematics Acquired . | . . . . . . Parts Damaged . | . . . . . . Bothacking | -11 -10 -10 -9 -9 -8 ------------ Run | Scr Mat Min Mat Min Mat Used RIF Installer . | . . . . . . Robots Hacked . | . . . . . . Non-combat . | . . . . . . Combat . | . . . . . . Robot Hacks Applied . | . . . . . . Relay Couplers Released . | . . . . . . Robots Rewired . | . . . . . . Allies Hacked . | . . . . . . Hacks Repelled . | . . . . . . Allies | -11 -10 -10 -9 -9 -8 -------- Run | Scr Mat Min Mat Min Mat Total Allies . | . . . . . . Largest Group . | . . . . . . Highest-Rated Group . | . . . . . . Highest-Rated Ally . | . . . . . . Total Orders . | . . . . . . Ally Attacks . | . . . . . . Total Damage . | . . . . . . Kills . | . . . . . . Allies Corrupted . | . . . . . . Allies Melted . | . . . . . . Intel | -11 -10 -10 -9 -9 -8 ------- Run | Scr Mat Min Mat Min Mat Robot Analysis Total . | . . . . . . Derelict Logs Recovered 1 | . . . . 1 . Drone Launches . | . . . . . . Drone Recoveries . | . . . . . . Exploration | -11 -10 -10 -9 -9 -8 ------------- Run | Scr Mat Min Mat Min Mat Turns Passed 1851 | 79 209 395 318 473 377 Spaces Moved 1167 | 58 155 276 191 314 173 Core 17 | 10 . . . . 7 Treads 5 | 5 . . . . . Legs 1143 | 43 155 276 191 314 164 Wheels . | . . . . . . Hover . | . . . . . . Flight 2 | . . . . . 2 Fastest Speed 50 | 50 120 120 120 120 120 Average Speed 124 | 111 120 120 120 125 139 Slowest Speed 450 | 160 120 120 150 150 450 Overloaded Moves . | . . . . . . Propulsion Burnouts . | . . . . . . Robots Hopped . | . . . . . . Cave-ins Triggered . | . . . . . . Exploration Rate (%) 36 | 4 34 55 28 69 31 Regions Visited 5 Branch Regions 2 Pre-discovered Areas 1 | . . . . 1 . Known Exits Taken . | . . . . . . Unknown Exits Taken 5 | 1 1 1 1 1 . Scrap Searched 1 | . . 1 . . . Spaces Dug . | . . . . . . Terrain Destroyed 193 | . 42 . 37 59 55 Melee . | . . . . . . Projectile . | . . . . . . AOE 193 | . 42 . 37 59 55 Terrain Rammed . | . . . . . . Walls Destroyed . | . . . . . . Machines Disabled . | . . . . . . Actions | -11 -10 -10 -9 -9 -8 --------- Run | Scr Mat Min Mat Min Mat Total 1423 | 70 171 314 248 358 262 Wait 42 | . . 5 11 . 26 Move 1162 | 57 154 275 190 313 173 Hop . | . . . . . . Pick Up 28 | 5 5 2 4 3 9 Fast Attach 12 | 5 . . 5 2 . Attach 21 | 2 . 3 2 3 11 Detach 1 | 1 . . . . . Swap 10 | . 1 3 3 . 3 Drop 9 | . 3 . 3 2 1 Fire 122 | . 8 24 29 35 26 Melee 12 | . . . . . 12 Ram . | . . . . . . Kick 4 | . . 2 1 . 1 Crush . | . . . . . . Escape Stasis . | . . . . . . Rewire . | . . . . . . Trap . | . . . . . . Miscellaneous . | . . . . . . Route ------- -11/Scrapyard -10/Materials -10/Mines -9/Materials -9/Mines -8/Materials History --------- Turn | Location | Event 9 | -11/Scrapyard | Discovered new exit (range 15) 80 | -11/Scrapyard | Entered Materials 268 | -10/Materials | Discovered new exit (range 13) 289 | -10/Materials | Entered Mines 304 | -10/Mines | Build established: Mutant 414 | -10/Mines | Found a damaged Exp. Sensor Array with a note attached 417 | -10/Mines | Found Prototype Device 418 | -10/Mines | Identified Exp. Sensor Array 666 | -10/Mines | Discovered new exit (range 15) 684 | -10/Mines | Entered Materials 684 | -9/Materials | Evolved 2 slots: Propulsion x2 963 | -9/Materials | Discovered new exit (range 14) 968 | -9/Materials | Lost 3 parts (1p1n1u) 1002 | -9/Materials | Entered Mines 1005 | -9/Mines | Learned location of Storage (-7) 1170 | -9/Mines | Excavation squad dispatched 1170 | -9/Mines | A large section of the Mines collapsed 1297 | -9/Mines | Lost 4 parts (2n2w) 1420 | -9/Mines | Excavation squad dispatched 1421 | -9/Mines | Discovered new exit (range 20) 1467 | -9/Mines | Met a Derelict who couldn't figure out how to use a Trap Extractor 1475 | -9/Mines | Entered Materials 1475 | -8/Materials | Evolved 2 slots: Power x1, Utility x1 1753 | -8/Materials | Lost 8 parts (2p4n2w) 1804 | -8/Materials | Core integrity fell below 50% 1817 | -8/Materials | Garrison activated, responded to threat 1842 | -8/Materials | Core integrity fell below 20% 1844 | -8/Materials | Lost 6 parts (1p3n2w) 1852 | -8/Materials | Destroyed by G-47 Trooper with Particle Gun Last Messages --------------- 01788_ K-01 Serf collects debris. 01788_ R-06 Scavenger collects Lgt. Assault Rifle. 01792_ K-01 Serf collects debris. 01799_ Aluminum Leg destroyed. 01801_ Lgt. Ion Engine destroyed. 01802_ G-47 Trooper knocked back. 01805_ K-01 Serf collects debris. 01806_ W-25 Informer sends out distress signal. 01807_ Axe destroyed. 01813_ Flak Cannon destroyed. 01817_ System corrupted: Energy discharge (-32). 01817_ S-10 Pest knocked back. 01817_ S-10 Pest calls for garrison reinforcements. 01817_ ALERT: Activating Garrison Access M001. 01823_ S-10 Pest knocked back. 01825_ S-10 Pest destroyed. 01835_ Acquired 15 matter. 01841_ R-06 Scavenger collects Flight Unit. 01843_ Acquired Flight Unit. 01849_ R-06 Scavenger collects Lgt. Ion Engine. Map ----- +----------------------------------------------------+ | ?????????????????????????????????????????????????? | | ?????????????????????????????????????????????????? | | ?????????????????????????????????????????????????? | | ?????????????????????????????????????????????????? | | ?????????????????????????????????????????????????? | | ?????????????????????????????????????????????????? | | ?????????????????????????????????????????????????? | | ?????????????????????????????????????????????????? | | ?????????????????????????????????????????????????? | | ?????????????????????????????????????????????????? | | ?????????????????????????????????????????????????? | | ?????????????????????????????????????????????????? | | ?????????????????????????????????????????????????? | | ?????????????????????????????????????????????????? | | ?????????????????????????????????????????????????? | | ?????????????????????????????????????????????????? | | ?????????????????????????????????????????????????? | | ?????????????????????????????????????????????????? | | ?????????????????????????????????????????????????? | | ?????????????????????????????????????????????????? | | ?????????????????????????????????????????????????? | | ?????????????????????????????????????????????????? | | ????????????????????#????????????????????????????? | | ????????????????????# ????????????????????? #? | | ???????????????????## ########???????????? #? | | ???????????????????# l g @ #???????????? #? | | ???????????????????# Y# g #???????????? #? | | ???????????????????# ??#a """ #???????????? +? | | ???????????????????????# """ #???????????? #? | | ???????????????????????#!Y""" +???????????? #? | | ???????????????????# ??# r #???????????? #? | | ????????##??+####### ###+################ #? | | ???????? #? | | ??????? #? | | ??????? #? | | ??????? ################## #? | | ??????? #????????????????# """ #? | | ??????? #????????????????# """ !! #? | | ?????? #????????????????+ """ !! ## | | ?????? #????????????????# ! % | | ?????? #????????????????# %%% | | ?????? #????????????????# | | ?????? +????????????????# ###+####### #####+ | | ?????? #????????????????# #?? ?????# #????? | | ?????? #????????????????# #?? ?????# #???? | | ?##### #????????????????# #??"""????# #??"" | | ?# #????????????????# #??"""?#### # """ | | ?# #????????????????# #???"??+ + """ | | ?# #????????????????# #??????#### # """ | | ?####+##+##???????????????# #?????????### #??"" | +----------------------------------------------------+ Best States ------------- Heat Dissipation 31 Energy Generation 17 Energy Capacity 415 Matter Stores 300 Matter Capacity 300 Sight Range 20 Robot Scan Range 30 Terrain Scan Density 10 Evasion (%) 50 Recoil Reduction 1 Item Schematics ----------------- None Robot Schematics ------------------ None Fabricated ------------ Nothing Alien Tech Used ----------------- None Achievements -------------- None Challenges ------------ None Game ------ Seed CorruptionHardenedShifter Manual? 0 Play Time 00:27:00 Cumulative 4.2 hours Start 2020.09.23 @ 17:06:15 End 2020.09.23 @ 17:29:12 Sessions 1 Manual Loads 0 Difficulty Rogue Special Mode None Game No. 25 Rogue 25 Adventurer 0 Explorer 0 Win Type - Total 0 Types 0/0/0/0/0/0/0/0/0 Lore% 0 Gallery% 10 Achievement% 2 Wizard Run 0 Options --------- ASCII 0 Keyboard 0 Movement Mouse Keybinds 0 Fullscreen 1 Font 18/SmallcapsGlow Map View 76x50 Tactical HUD 1 Map Filters NONE Filters NONE Steam 1 RUN: c9cec89c-9a77-4ba2-a3dd-cbc912c715e7